[Event "*** Titled Tuesday Blitz"]
[Site "Chess.com"]
[Date "2021.03.02"]
[Round "3"]
[White "leejunhyeok"]
[Black "Kaslask"]
[Result "1-0"]
[WhiteElo "2578"]
[BlackElo "2280"]
[TimeControl "180+1"]
[EndTime "10:28:18 PST"]
[Termination "leejunhyeok won by resignation"]

1. d4 {[%clk 0:03:00.9]} 1... Nf6 {[%clk 0:02:59.6]} 2. Nf3 {[%clk 0:03:00]}
2... g6 {[%clk 0:02:59.5]} 3. Bg5 {[%clk 0:02:59.6]} 3... Bg7 {[%clk 0:02:58.4]}
4. Nbd2 {[%clk 0:02:59.8]} 4... O-O {[%clk 0:02:56.1]} 5. e4 {[%clk 0:02:59.5]}
5... d5 {[%clk 0:02:55.9]} 6. exd5 {[%clk 0:02:59.2]} 6... Nxd5 {[%clk
0:02:43.5]} 7. c3 {[%clk 0:02:58.6]} 7... b6 {[%clk 0:02:40.7]} 8. Bc4 {[%clk
0:02:50.3]} 8... Bb7 {[%clk 0:02:39.6]} 9. O-O {[%clk 0:02:49.9]} 9... Nc6
{[%clk 0:02:37.6]} 10. Re1 {[%clk 0:02:49.6]} 10... Qd6 {[%clk 0:02:36.8]} 11.
Bh4 {[%clk 0:02:45.9]} 11... Na5 {[%clk 0:02:30.6]} 12. Bf1 {[%clk 0:02:44.5]}
12... Rae8 {[%clk 0:02:26.3]} 13. Bg3 {[%clk 0:02:44.2]} 13... Qd8 {[%clk
0:02:25]} 14. Qc2 {[%clk 0:02:28.4]} 14... Nc6 {[%clk 0:02:21.7]} 15. Rad1
{[%clk 0:02:19.8]} 15... Qc8 {[%clk 0:02:16.1]} 16. c4 {[%clk 0:02:04.9]} 16...
Nf6 {[%clk 0:02:14.6]} 17. d5 {[%clk 0:02:04.4]} 17... Nb4 {[%clk 0:02:13.3]}
18. Qa4 {[%clk 0:01:57.5]} 18... a5 {[%clk 0:02:12]} 19. a3 {[%clk 0:01:37.9]}
19... Na6 {[%clk 0:02:10.2]} 20. b4 {[%clk 0:01:31.1]} 20... axb4 {[%clk
0:01:47.8]} 21. axb4 {[%clk 0:01:32]} 21... Qf5 {[%clk 0:01:43.8]} 22. Nd4
{[%clk 0:01:23.2]} 22... Qg4 {[%clk 0:01:42.8]} 23. N2f3 {[%clk 0:01:13.2]}
23... Ne4 {[%clk 0:01:41.3]} 24. h3 {[%clk 0:01:05.8]} 24... Nc3 {[%clk
0:01:39.1]} 25. Qb3 {[%clk 0:00:50.1]} 25... Qc8 {[%clk 0:01:29.3]} 26. Qxc3
{[%clk 0:00:49.6]} 26... c5 {[%clk 0:01:29.5]} 27. dxc6 {[%clk 0:00:49.5]} 27...
Bxc6 {[%clk 0:01:27.4]} 28. Ne5 {[%clk 0:00:47.6]} 28... Bb7 {[%clk 0:01:23.1]}
29. Nb5 {[%clk 0:00:38.5]} 29... Nc7 {[%clk 0:01:19.6]} 30. Nxc7 {[%clk
0:00:36.3]} 30... Qxc7 {[%clk 0:01:19.5]} 31. Qb3 {[%clk 0:00:36.3]} 31... Qc8
{[%clk 0:01:17.4]} 32. Nd7 {[%clk 0:00:35.3]} 32... Bc6 {[%clk 0:01:14]} 33.
Nxf8 {[%clk 0:00:33.4]} 33... Rxf8 {[%clk 0:01:12.7]} 34. Rxe7 {[%clk
0:00:32.3]} 34... Qa8 {[%clk 0:01:11.6]} 35. c5 {[%clk 0:00:31.3]} 35... Ba4
{[%clk 0:01:10.5]} 36. Qb1 {[%clk 0:00:24.7]} 36... Bxd1 {[%clk 0:01:07.6]} 37.
Qxd1 {[%clk 0:00:25.6]} 37... bxc5 {[%clk 0:01:07.6]} 38. bxc5 {[%clk
0:00:26.5]} 38... Qc6 {[%clk 0:01:04.5]} 39. Bd6 {[%clk 0:00:22.3]} 39... Ra8
{[%clk 0:00:55.1]} 40. Qf3 {[%clk 0:00:18.5]} 40... Qxf3 {[%clk 0:00:43.8]} 41.
gxf3 {[%clk 0:00:19.4]} 41... Ra1 {[%clk 0:00:41.5]} 42. Kg2 {[%clk 0:00:19.6]}
42... Rc1 {[%clk 0:00:38.3]} 43. Re8+ {[%clk 0:00:19.7]} 43... Bf8 {[%clk
0:00:36.9]} 44. Rxf8+ {[%clk 0:00:20.2]} 44... Kg7 {[%clk 0:00:35.4]} 45. Rc8
{[%clk 0:00:21.1]} 45... f5 {[%clk 0:00:34.5]} 46. c6 {[%clk 0:00:21.3]} 46...
Kf7 {[%clk 0:00:34.2]} 47. c7 {[%clk 0:00:21.6]} 47... Ke6 {[%clk 0:00:34.6]}
48. Bf4 {[%clk 0:00:20.9]} 48... g5 {[%clk 0:00:34]} 49. Bxc1 {[%clk 0:00:19.3]}
1-0

[Event "*** Titled Tuesday Blitz"]
[Site "Chess.com"]
[Date "2021.03.02"]
[Round "3"]
[White "Firegrizzly"]
[Black "Lion-Al-Messi"]
[Result "1-0"]
[WhiteElo "2667"]
[BlackElo "2425"]
[TimeControl "180+1"]
[EndTime "10:28:19 PST"]
[Termination "Firegrizzly won by resignation"]

1. d4 {[%clk 0:03:00.9]} 1... b6 {[%clk 0:02:58.7]} 2. e4 {[%clk 0:02:58.8]}
2... Bb7 {[%clk 0:02:59]} 3. Nc3 {[%clk 0:02:59.3]} 3... e6 {[%clk 0:02:59.2]}
4. Nf3 {[%clk 0:02:56.6]} 4... Bb4 {[%clk 0:02:58.9]} 5. Bd3 {[%clk 0:02:56.6]}
5... Nf6 {[%clk 0:02:58.7]} 6. Qe2 {[%clk 0:02:53]} 6... d5 {[%clk 0:02:58.9]}
7. e5 {[%clk 0:02:53.4]} 7... Ne4 {[%clk 0:02:58.7]} 8. O-O {[%clk 0:02:53.7]}
8... Nxc3 {[%clk 0:02:56.4]} 9. bxc3 {[%clk 0:02:53.4]} 9... Bxc3 {[%clk
0:02:57.3]} 10. Rb1 {[%clk 0:02:53.9]} 10... Nc6 {[%clk 0:02:55.6]} 11. Qe3
{[%clk 0:02:50.6]} 11... Bb4 {[%clk 0:02:52.8]} 12. Qf4 {[%clk 0:02:47.7]} 12...
Be7 {[%clk 0:02:51.9]} 13. h4 {[%clk 0:02:47]} 13... Qd7 {[%clk 0:02:50.1]} 14.
h5 {[%clk 0:02:46.2]} 14... h6 {[%clk 0:02:45.4]} 15. Qg4 {[%clk 0:02:42.2]}
15... Bf8 {[%clk 0:02:31.4]} 16. c3 {[%clk 0:02:34.6]} 16... O-O-O {[%clk
0:02:29.6]} 17. Nd2 {[%clk 0:02:28.2]} 17... Be7 {[%clk 0:02:25.4]} 18. f4
{[%clk 0:02:27]} 18... Rdg8 {[%clk 0:02:22.5]} 19. f5 {[%clk 0:02:23.2]} 19...
Kb8 {[%clk 0:01:40.3]} 20. a4 {[%clk 0:02:20.6]} 20... a5 {[%clk 0:01:35.7]} 21.
Bb5 {[%clk 0:02:19.3]} 21... exf5 {[%clk 0:01:32.6]} 22. Qxf5 {[%clk 0:02:17.6]}
22... Qxf5 {[%clk 0:01:31.2]} 23. Rxf5 {[%clk 0:02:18.5]} 23... Nd8 {[%clk
0:01:30.8]} 24. Bd3 {[%clk 0:02:05.7]} 24... Bc8 {[%clk 0:01:30.1]} 25. Rf2
{[%clk 0:02:02.3]} 25... Bh4 {[%clk 0:01:26.7]} 26. Rf1 {[%clk 0:02:00.5]} 26...
Be7 {[%clk 0:01:18.4]} 27. c4 {[%clk 0:01:58.8]} 27... Be6 {[%clk 0:01:15.5]}
28. c5 {[%clk 0:01:57.9]} 28... Ka7 {[%clk 0:01:12.4]} 29. Ba3 {[%clk 0:01:54]}
29... Nc6 {[%clk 0:01:09.4]} 30. Rfc1 {[%clk 0:01:48.8]} 30... Kb7 {[%clk
0:00:59.7]} 31. Bb5 {[%clk 0:01:40.6]} 31... Nb4 {[%clk 0:00:46]} 32. Bxb4
{[%clk 0:01:33.8]} 32... axb4 {[%clk 0:00:46.9]} 33. Rxb4 {[%clk 0:01:26.2]}
33... bxc5 {[%clk 0:00:46]} 34. dxc5 {[%clk 0:01:24.2]} 34... c6 {[%clk
0:00:45.8]} 35. Nb3 {[%clk 0:00:57.5]} 35... Kc7 {[%clk 0:00:45.3]} 36. Bxc6
{[%clk 0:00:47.5]} 36... Rb8 {[%clk 0:00:20.1]} 37. Bb5 {[%clk 0:00:46.6]} 37...
Bg5 {[%clk 0:00:18.2]} 38. Rc2 {[%clk 0:00:43.8]} 38... d4 {[%clk 0:00:12.6]}
39. Nxd4 {[%clk 0:00:40.9]} 39... Bd5 {[%clk 0:00:08.4]} 40. Kh2 {[%clk
0:00:40]} 40... Rhd8 {[%clk 0:00:07.7]} 41. Nf5 {[%clk 0:00:39.6]} 41... Bf4+
{[%clk 0:00:07.6]} 42. Rxf4 {[%clk 0:00:38.2]} 42... Be6 {[%clk 0:00:07.7]} 43.
Nxg7 {[%clk 0:00:38.6]} 43... Rd5 {[%clk 0:00:07.1]} 44. Nxe6+ {[%clk
0:00:38.5]} 1-0

[Event "*** Titled Tuesday Blitz"]
[Site "Chess.com"]
[Date "2021.03.02"]
[Round "3"]
[White "Evachess2006"]
[Black "Babujj"]
[Result "0-1"]
[WhiteElo "1602"]
[BlackElo "2474"]
[TimeControl "180+1"]
[EndTime "10:28:21 PST"]
[Termination "Babujj won on time"]

1. e4 {[%clk 0:03:00.9]} 1... e6 {[%clk 0:02:55.1]} 2. d4 {[%clk 0:02:59.9]}
2... d5 {[%clk 0:02:54.9]} 3. exd5 {[%clk 0:02:55.4]} 3... exd5 {[%clk
0:02:55.2]} 4. Bd3 {[%clk 0:02:55.4]} 4... Bd6 {[%clk 0:02:54.8]} 5. Ne2 {[%clk
0:02:45.9]} 5... Ne7 {[%clk 0:02:53.8]} 6. O-O {[%clk 0:02:29.7]} 6... Nbc6
{[%clk 0:02:49.7]} 7. Re1 {[%clk 0:02:17.3]} 7... Bg4 {[%clk 0:02:39.7]} 8. Bg5
{[%clk 0:02:09.6]} 8... f6 {[%clk 0:02:29.2]} 9. Bh4 {[%clk 0:01:57.8]} 9... g5
{[%clk 0:02:10]} 10. Bg3 {[%clk 0:01:51.1]} 10... Bxg3 {[%clk 0:01:59.2]} 11.
hxg3 {[%clk 0:01:44.1]} 11... Nxd4 {[%clk 0:01:53.6]} 12. Bg6+ {[%clk
0:01:03.1]} 12... hxg6 {[%clk 0:01:43.1]} 13. Qxd4 {[%clk 0:00:46.1]} 13... Bxe2
{[%clk 0:01:38.1]} 14. Rxe2 {[%clk 0:00:33.9]} 14... Kf7 {[%clk 0:01:35.6]} 15.
Nc3 {[%clk 0:00:31.9]} 15... c6 {[%clk 0:01:33.4]} 16. Rae1 {[%clk 0:00:30.6]}
16... Nf5 {[%clk 0:01:25.5]} 17. Qc5 {[%clk 0:00:20.6]} 17... g4 {[%clk
0:00:57.2]} 18. b4 {[%clk 0:00:15.5]} 18... Qd7 {[%clk 0:00:49]} 19. b5 {[%clk
0:00:12.1]} 19... Rae8 {[%clk 0:00:45]} 20. bxc6 {[%clk 0:00:11.1]} 20... bxc6
{[%clk 0:00:44.9]} 21. Rxe8 {[%clk 0:00:09.7]} 21... Rxe8 {[%clk 0:00:45.8]} 22.
Rxe8 {[%clk 0:00:09.4]} 22... Kxe8 {[%clk 0:00:45]} 23. Ne2 {[%clk 0:00:06.5]}
23... Kf7 {[%clk 0:00:34.2]} 24. Nd4 {[%clk 0:00:05]} 24... Nxd4 {[%clk
0:00:33.8]} 25. Qxd4 {[%clk 0:00:05.2]} 25... f5 {[%clk 0:00:21.4]} 26. Qe5
{[%clk 0:00:03.3]} 26... Qe7 {[%clk 0:00:20.7]} 27. Qf4 {[%clk 0:00:03.1]} 27...
c5 {[%clk 0:00:19]} 28. Qh6 {[%clk 0:00:02.7]} 28... Qe1+ {[%clk 0:00:14.5]} 29.
Kh2 {[%clk 0:00:01.6]} 29... Qe5 {[%clk 0:00:15.4]} 30. Qg7+ {[%clk 0:00:01.7]}
30... Qxg7 {[%clk 0:00:15.7]} 0-1

[Event "*** Titled Tuesday Blitz"]
[Site "Chess.com"]
[Date "2021.03.02"]
[Round "3"]
[White "Darius321"]
[Black "ural58"]
[Result "0-1"]
[WhiteElo "2306"]
[BlackElo "2531"]
[TimeControl "180+1"]
[EndTime "10:28:22 PST"]
[Termination "ural58 won by resignation"]

1. e4 {[%clk 0:02:33]} 1... d5 {[%clk 0:02:59.9]} 2. exd5 {[%clk 0:02:32.7]}
2... Qxd5 {[%clk 0:02:59.9]} 3. Nc3 {[%clk 0:02:33.2]} 3... Qa5 {[%clk
0:02:59.9]} 4. d4 {[%clk 0:02:33.5]} 4... Nf6 {[%clk 0:03:00.2]} 5. Nf3 {[%clk
0:02:33.7]} 5... Nc6 {[%clk 0:03:00.3]} 6. Bc4 {[%clk 0:02:31.2]} 6... Bg4
{[%clk 0:02:59.5]} 7. d5 {[%clk 0:02:29.7]} 7... O-O-O {[%clk 0:02:58.8]} 8. h3
{[%clk 0:02:20.7]} 8... Bh5 {[%clk 0:02:07.8]} 9. Bd2 {[%clk 0:02:19.3]} 9...
Qc5 {[%clk 0:02:07.3]} 10. Bb3 {[%clk 0:02:07.7]} 10... Bxf3 {[%clk 0:02:03.1]}
11. Qxf3 {[%clk 0:02:05.7]} 11... Nd4 {[%clk 0:02:03.4]} 12. Qf4 {[%clk
0:01:46.7]} 12... Nxb3 {[%clk 0:01:52.1]} 13. axb3 {[%clk 0:01:44]} 13... a6
{[%clk 0:01:48]} 14. O-O-O {[%clk 0:01:37]} 14... Qd6 {[%clk 0:01:20.8]} 15. Qd4
{[%clk 0:01:36]} 15... e5 {[%clk 0:01:19.7]} 16. Qa7 {[%clk 0:01:32.9]} 16...
Qb6 {[%clk 0:01:19.8]} 17. Qxb6 {[%clk 0:01:27]} 17... cxb6 {[%clk 0:01:20.7]}
18. f4 {[%clk 0:01:20.5]} 18... Bd6 {[%clk 0:01:11.9]} 19. fxe5 {[%clk
0:01:19.2]} 19... Bxe5 {[%clk 0:01:11.9]} 20. Rhe1 {[%clk 0:01:19.2]} 20... Rhe8
{[%clk 0:01:11.4]} 21. Be3 {[%clk 0:01:05.4]} 21... Bxc3 {[%clk 0:01:09.5]} 22.
bxc3 {[%clk 0:00:58.8]} 22... Nxd5 {[%clk 0:01:08.4]} 23. Bd4 {[%clk 0:00:54.6]}
23... f6 {[%clk 0:01:05.1]} 24. c4 {[%clk 0:00:53.9]} 24... Nf4 {[%clk
0:00:58.9]} 25. Bxb6 {[%clk 0:00:52.1]} 25... Rxd1+ {[%clk 0:00:58.5]} 26. Rxd1
{[%clk 0:00:49.6]} 26... Nxg2 {[%clk 0:00:56.5]} 27. Rg1 {[%clk 0:00:46.6]}
27... Re1+ {[%clk 0:00:56.3]} 28. Rxe1 {[%clk 0:00:45.5]} 28... Nxe1 {[%clk
0:00:57.2]} 29. Kd2 {[%clk 0:00:44.2]} 29... Nf3+ {[%clk 0:00:57.3]} 30. Ke3
{[%clk 0:00:43.5]} 30... Ng5 {[%clk 0:00:57.1]} 31. h4 {[%clk 0:00:42.9]} 31...
Ne6 {[%clk 0:00:56.9]} 32. Ke4 {[%clk 0:00:40.5]} 32... Kd7 {[%clk 0:00:55.7]}
33. Kf5 {[%clk 0:00:37.6]} 33... Ke7 {[%clk 0:00:54.2]} 34. h5 {[%clk
0:00:37.7]} 34... Kf7 {[%clk 0:00:53.8]} 35. b4 {[%clk 0:00:33.1]} 35... g6+
{[%clk 0:00:53.7]} 36. hxg6+ {[%clk 0:00:32.5]} 36... hxg6+ {[%clk 0:00:54.6]}
37. Ke4 {[%clk 0:00:32.2]} 37... Ke7 {[%clk 0:00:54.9]} 38. b5 {[%clk
0:00:26.1]} 38... Kd7 {[%clk 0:00:50.4]} 39. bxa6 {[%clk 0:00:24.6]} 39... bxa6
{[%clk 0:00:50.4]} 40. Be3 {[%clk 0:00:22.4]} 40... Kc6 {[%clk 0:00:49.4]} 41.
Kd3 {[%clk 0:00:17]} 41... a5 {[%clk 0:00:46.8]} 42. Kc3 {[%clk 0:00:15.8]}
42... g5 {[%clk 0:00:47.2]} 43. Kb3 {[%clk 0:00:15.4]} 43... f5 {[%clk
0:00:47.4]} 44. Ka4 {[%clk 0:00:15.3]} 44... f4 {[%clk 0:00:47.3]} 45. Bg1
{[%clk 0:00:12.8]} 45... g4 {[%clk 0:00:46.4]} 46. Kxa5 {[%clk 0:00:12.9]} 46...
g3 {[%clk 0:00:46.7]} 47. Kb4 {[%clk 0:00:10.9]} 47... f3 {[%clk 0:00:47]} 48.
Kc3 {[%clk 0:00:10.8]} 48... f2 {[%clk 0:00:47.4]} 0-1

[Event "*** Titled Tuesday Blitz"]
[Site "Chess.com"]
[Date "2021.03.02"]
[Round "3"]
[White "sakkikuska"]
[Black "Ze-Pequeno"]
[Result "1-0"]
[WhiteElo "2500"]
[BlackElo "2225"]
[TimeControl "180+1"]
[EndTime "10:28:26 PST"]
[Termination "sakkikuska won on time"]

1. e4 {[%clk 0:02:59.8]} 1... c5 {[%clk 0:02:58]} 2. Nf3 {[%clk 0:03:00]} 2...
d6 {[%clk 0:02:57.5]} 3. d4 {[%clk 0:03:00.3]} 3... cxd4 {[%clk 0:02:58.4]} 4.
Nxd4 {[%clk 0:03:01.2]} 4... Nf6 {[%clk 0:02:58.5]} 5. f3 {[%clk 0:03:01.6]}
5... e5 {[%clk 0:02:51.6]} 6. Nb3 {[%clk 0:03:01.4]} 6... a5 {[%clk 0:02:23]} 7.
Be3 {[%clk 0:02:55.9]} 7... a4 {[%clk 0:02:04.7]} 8. N3d2 {[%clk 0:02:54.8]}
8... d5 {[%clk 0:01:57.1]} 9. exd5 {[%clk 0:02:52.8]} 9... Nxd5 {[%clk
0:01:55.9]} 10. Bf2 {[%clk 0:02:52.4]} 10... Nc6 {[%clk 0:01:49]} 11. Bb5 {[%clk
0:02:47.3]} 11... Be7 {[%clk 0:01:42.9]} 12. O-O {[%clk 0:02:45.9]} 12... O-O
{[%clk 0:01:42.3]} 13. Ne4 {[%clk 0:02:37.8]} 13... Bf5 {[%clk 0:01:15.6]} 14.
a3 {[%clk 0:02:28.9]} 14... Bxe4 {[%clk 0:00:47.6]} 15. fxe4 {[%clk 0:02:28.4]}
15... Nf6 {[%clk 0:00:48.1]} 16. Nc3 {[%clk 0:02:27.1]} 16... Nd4 {[%clk
0:00:44.4]} 17. Bxa4 {[%clk 0:02:02.7]} 17... Nxe4 {[%clk 0:00:41.7]} 18. Nxe4
{[%clk 0:02:03.6]} 18... Rxa4 {[%clk 0:00:41]} 19. Nc3 {[%clk 0:01:50]} 19...
Ra8 {[%clk 0:00:39.1]} 20. Bxd4 {[%clk 0:01:49.4]} 20... exd4 {[%clk 0:00:35.4]}
21. Ne2 {[%clk 0:01:48.3]} 21... Bc5 {[%clk 0:00:31.4]} 22. Qd3 {[%clk
0:01:48.5]} 22... Qe7 {[%clk 0:00:25.1]} 23. Rfe1 {[%clk 0:01:41.2]} 23... Rad8
{[%clk 0:00:23.4]} 24. Ng3 {[%clk 0:01:40]} 24... Qd7 {[%clk 0:00:20]} 25. Ne4
{[%clk 0:01:39.1]} 25... Ba7 {[%clk 0:00:19]} 26. Kh1 {[%clk 0:01:36.3]} 26...
h6 {[%clk 0:00:18.8]} 27. Rad1 {[%clk 0:01:34.7]} 27... Rfe8 {[%clk 0:00:18.7]}
28. Qg3 {[%clk 0:01:32.9]} 28... Qc6 {[%clk 0:00:16]} 29. Qd3 {[%clk 0:01:25.7]}
29... Bb6 {[%clk 0:00:08.7]} 30. Ng3 {[%clk 0:01:22.1]} 30... Re3 {[%clk
0:00:07.9]} 31. Qf5 {[%clk 0:01:04.5]} 31... Rde8 {[%clk 0:00:07.6]} 32. Rf1
{[%clk 0:01:02.6]} 32... Qe6 {[%clk 0:00:05.8]} 33. Qxe6 {[%clk 0:00:50.1]}
33... R8xe6 {[%clk 0:00:05.5]} 34. Nf5 {[%clk 0:00:50.2]} 34... R3e4 {[%clk
0:00:05.2]} 35. g3 {[%clk 0:00:44.6]} 35... h5 {[%clk 0:00:03.3]} 36. Rd3 {[%clk
0:00:42.2]} 36... Rc6 {[%clk 0:00:02]} 37. Rf2 {[%clk 0:00:39.1]} 1-0

[Event "*** Titled Tuesday Blitz"]
[Site "Chess.com"]
[Date "2021.03.02"]
[Round "3"]
[White "HajiyevKanan"]
[Black "Alexandercs432"]
[Result "1-0"]
[WhiteElo "2430"]
[BlackElo "2214"]
[TimeControl "180+1"]
[EndTime "10:28:27 PST"]
[Termination "HajiyevKanan won by resignation"]

1. d4 {[%clk 0:03:00.9]} 1... Nf6 {[%clk 0:02:59]} 2. c4 {[%clk 0:02:56.5]} 2...
e6 {[%clk 0:02:59.2]} 3. Nf3 {[%clk 0:02:57.4]} 3... b6 {[%clk 0:02:58.9]} 4.
Bf4 {[%clk 0:02:57.5]} 4... Bb7 {[%clk 0:02:58.6]} 5. a3 {[%clk 0:02:57.1]} 5...
Be7 {[%clk 0:02:57.7]} 6. Nc3 {[%clk 0:02:57.4]} 6... O-O {[%clk 0:02:57.7]} 7.
e3 {[%clk 0:02:58]} 7... Ne4 {[%clk 0:02:56.8]} 8. Nxe4 {[%clk 0:02:57.4]} 8...
Bxe4 {[%clk 0:02:57.7]} 9. Be2 {[%clk 0:02:58]} 9... d6 {[%clk 0:02:57.3]} 10.
O-O {[%clk 0:02:57.8]} 10... Nd7 {[%clk 0:02:57.3]} 11. b4 {[%clk 0:02:58.3]}
11... c5 {[%clk 0:02:57]} 12. dxc5 {[%clk 0:02:55.8]} 12... dxc5 {[%clk
0:02:57.2]} 13. Bd6 {[%clk 0:02:53.7]} 13... Bxd6 {[%clk 0:02:51.7]} 14. Qxd6
{[%clk 0:02:53.8]} 14... Nf6 {[%clk 0:02:51.6]} 15. Rfd1 {[%clk 0:02:53.6]}
15... Qxd6 {[%clk 0:02:45.7]} 16. Rxd6 {[%clk 0:02:54.5]} 16... Rfd8 {[%clk
0:02:34.9]} 17. Rad1 {[%clk 0:02:53.6]} 17... Rxd6 {[%clk 0:02:34.9]} 18. Rxd6
{[%clk 0:02:54.5]} 18... cxb4 {[%clk 0:02:15.6]} 19. axb4 {[%clk 0:02:53.4]}
19... a5 {[%clk 0:02:16.1]} 20. Rxb6 {[%clk 0:02:10.1]} 20... a4 {[%clk
0:02:15.8]} 21. Nd2 {[%clk 0:02:09.9]} 21... a3 {[%clk 0:02:14.4]} 22. Nb3
{[%clk 0:02:09.4]} 22... a2 {[%clk 0:02:12.9]} 23. Na1 {[%clk 0:02:09.1]} 23...
h6 {[%clk 0:02:01.7]} 24. f3 {[%clk 0:02:03.1]} 24... Bb1 {[%clk 0:01:50.1]} 25.
Kf1 {[%clk 0:02:03.2]} 25... Nd7 {[%clk 0:01:26.7]} 26. Rb7 {[%clk 0:01:58.7]}
26... Ne5 {[%clk 0:01:22.9]} 27. Ke1 {[%clk 0:01:58.9]} 27... Ra3 {[%clk
0:01:00.5]} 28. Rb8+ {[%clk 0:01:52.4]} 28... Kh7 {[%clk 0:00:59.3]} 29. Kd2
{[%clk 0:01:47.3]} 29... Nd7 {[%clk 0:00:16.2]} 30. Rb7 {[%clk 0:01:45]} 30...
Nf6 {[%clk 0:00:08.7]} 31. e4 {[%clk 0:01:38.8]} 31... Kg6 {[%clk 0:00:07.8]}
32. c5 {[%clk 0:01:37.9]} 32... Ra8 {[%clk 0:00:05.4]} 33. c6 {[%clk 0:01:36.5]}
33... Rc8 {[%clk 0:00:04.3]} 34. b5 {[%clk 0:01:36.8]} 34... Ne8 {[%clk
0:00:03.8]} 35. Ra7 {[%clk 0:01:29]} 35... Nd6 {[%clk 0:00:03.6]} 36. Nb3 {[%clk
0:01:20.5]} 36... f6 {[%clk 0:00:03.5]} 37. Nd4 {[%clk 0:01:11.7]} 37... e5
{[%clk 0:00:03.5]} 38. Nb3 {[%clk 0:00:54.4]} 38... Ne8 {[%clk 0:00:02.9]} 39.
Nc1 {[%clk 0:00:54]} 39... Nd6 {[%clk 0:00:02.7]} 40. Nxa2 {[%clk 0:00:52.7]}
40... Bxa2 {[%clk 0:00:02.6]} 41. Rxa2 {[%clk 0:00:53.6]} 41... Rb8 {[%clk
0:00:02.6]} 42. c7 {[%clk 0:00:52.2]} 42... Rc8 {[%clk 0:00:02.8]} 43. b6 {[%clk
0:00:51.8]} 43... Nb7 {[%clk 0:00:01.5]} 44. Ba6 {[%clk 0:00:51]} 44... Rxc7
{[%clk 0:00:01.5]} 45. bxc7 {[%clk 0:00:50.2]} 1-0

[Event "*** Titled Tuesday Blitz"]
[Site "Chess.com"]
[Date "2021.03.02"]
[Round "3"]
[White "shnitez"]
[Black "Aleksey_Sorokin"]
[Result "0-1"]
[WhiteElo "2525"]
[BlackElo "2774"]
[TimeControl "180+1"]
[EndTime "10:28:28 PST"]
[Termination "Aleksey_Sorokin won by checkmate"]

1. e4 {[%clk 0:03:00.9]} 1... c6 {[%clk 0:02:36.1]} 2. Nc3 {[%clk 0:03:00.2]}
2... d5 {[%clk 0:02:35.3]} 3. Nf3 {[%clk 0:03:00.6]} 3... dxe4 {[%clk
0:02:35.3]} 4. Nxe4 {[%clk 0:03:01.5]} 4... Nf6 {[%clk 0:02:35.3]} 5. Qe2 {[%clk
0:03:01.8]} 5... Nxe4 {[%clk 0:02:34.9]} 6. Qxe4 {[%clk 0:03:02.7]} 6... Qd5
{[%clk 0:02:34.9]} 7. Qh4 {[%clk 0:03:01.1]} 7... Qe6+ {[%clk 0:02:34.6]} 8. Be2
{[%clk 0:02:58.9]} 8... Qg4 {[%clk 0:02:27.5]} 9. Qg3 {[%clk 0:02:54.4]} 9... h6
{[%clk 0:02:20.9]} 10. d4 {[%clk 0:02:49.7]} 10... Qxg3 {[%clk 0:02:19.1]} 11.
hxg3 {[%clk 0:02:50.6]} 11... Bf5 {[%clk 0:02:19]} 12. c3 {[%clk 0:02:50.8]}
12... Nd7 {[%clk 0:02:18.8]} 13. Bf4 {[%clk 0:02:48.2]} 13... e6 {[%clk
0:02:17.5]} 14. O-O-O {[%clk 0:02:44.2]} 14... Nf6 {[%clk 0:02:17.6]} 15. Ne5
{[%clk 0:02:41.8]} 15... Ne4 {[%clk 0:02:17.3]} 16. Be3 {[%clk 0:02:38.8]} 16...
f6 {[%clk 0:02:13.7]} 17. g4 {[%clk 0:02:24.5]} 17... Bh7 {[%clk 0:02:11.8]} 18.
Nd3 {[%clk 0:02:20.3]} 18... Bd6 {[%clk 0:02:11.2]} 19. Rhe1 {[%clk 0:02:14.3]}
19... O-O-O {[%clk 0:02:11.1]} 20. Bf3 {[%clk 0:01:49.9]} 20... Rhe8 {[%clk
0:02:10.4]} 21. Re2 {[%clk 0:01:38.6]} 21... Ng5 {[%clk 0:02:08.4]} 22. Bxg5
{[%clk 0:01:34]} 22... hxg5 {[%clk 0:02:07.9]} 23. Be4 {[%clk 0:01:26]} 23...
Bxe4 {[%clk 0:02:07.3]} 24. Rxe4 {[%clk 0:01:25.6]} 24... Kd7 {[%clk 0:02:08.2]}
25. Rde1 {[%clk 0:01:21]} 25... Re7 {[%clk 0:02:08.2]} 26. Kd2 {[%clk
0:01:19.5]} 26... Rh8 {[%clk 0:02:07.5]} 27. g3 {[%clk 0:01:11.6]} 27... Rh2
{[%clk 0:02:05.3]} 28. R4e2 {[%clk 0:01:11.3]} 28... Re8 {[%clk 0:02:03.7]} 29.
Ke3 {[%clk 0:01:07.6]} 29... g6 {[%clk 0:02:01.7]} 30. Kd2 {[%clk 0:01:05.6]}
30... f5 {[%clk 0:02:02]} 31. gxf5 {[%clk 0:01:00.8]} 31... gxf5 {[%clk
0:02:02.9]} 32. c4 {[%clk 0:00:54.9]} 32... g4 {[%clk 0:01:56.3]} 33. Kc3 {[%clk
0:00:53.6]} 33... Re7 {[%clk 0:01:54.3]} 34. a3 {[%clk 0:00:52.8]} 34... Rh6
{[%clk 0:01:53.5]} 35. b4 {[%clk 0:00:52.7]} 35... Rf7 {[%clk 0:01:53.3]} 36.
Ne5+ {[%clk 0:00:44]} 36... Bxe5 {[%clk 0:01:53.2]} 37. dxe5 {[%clk 0:00:44.9]}
37... Kc7 {[%clk 0:01:52.1]} 38. Rd1 {[%clk 0:00:44]} 38... Rd7 {[%clk
0:01:52.2]} 39. Rxd7+ {[%clk 0:00:42.9]} 39... Kxd7 {[%clk 0:01:53.1]} 40. Kd4
{[%clk 0:00:43.4]} 40... Rh1 {[%clk 0:01:51.7]} 41. Ke3 {[%clk 0:00:40.1]} 41...
Ke7 {[%clk 0:01:47.2]} 42. b5 {[%clk 0:00:20.4]} 42... c5 {[%clk 0:01:44.7]} 43.
Ra2 {[%clk 0:00:13.2]} 43... Re1+ {[%clk 0:01:42.7]} 44. Re2 {[%clk 0:00:11]}
44... Ra1 {[%clk 0:01:40.6]} 45. Rd2 {[%clk 0:00:07.9]} 45... Rxa3+ {[%clk
0:01:40.7]} 46. Ke2 {[%clk 0:00:05.3]} 46... Ra4 {[%clk 0:01:37.7]} 47. Rc2
{[%clk 0:00:05.3]} 47... Kd7 {[%clk 0:01:33.9]} 48. Rd2+ {[%clk 0:00:05.2]}
48... Ke8 {[%clk 0:01:34.1]} 49. Rd6 {[%clk 0:00:03.9]} 49... Ke7 {[%clk
0:01:33.8]} 50. b6 {[%clk 0:00:04]} 50... a6 {[%clk 0:01:28.7]} 51. Kd3 {[%clk
0:00:04.2]} 51... Rb4 {[%clk 0:01:28.7]} 52. Kc3 {[%clk 0:00:04.3]} 52... a5
{[%clk 0:01:29.1]} 53. Rd1 {[%clk 0:00:03.9]} 53... Rxb6 {[%clk 0:01:28.1]} 54.
Rh1 {[%clk 0:00:04.4]} 54... a4 {[%clk 0:01:27.4]} 55. Rh7+ {[%clk 0:00:04.9]}
55... Kd8 {[%clk 0:01:27.8]} 56. Rh8+ {[%clk 0:00:04.9]} 56... Kc7 {[%clk
0:01:28.3]} 57. Rh7+ {[%clk 0:00:04]} 57... Kb8 {[%clk 0:01:28.3]} 58. Rh8+
{[%clk 0:00:02.6]} 58... Ka7 {[%clk 0:01:28.6]} 59. Rh1 {[%clk 0:00:03.5]} 59...
Ka6 {[%clk 0:01:28]} 60. Rf1 {[%clk 0:00:02.8]} 60... Ka5 {[%clk 0:01:27.7]} 61.
f3 {[%clk 0:00:02.9]} 61... Rb3+ {[%clk 0:01:27.5]} 62. Kc2 {[%clk 0:00:02.7]}
62... Rxf3 {[%clk 0:01:28.4]} 63. Rb1 {[%clk 0:00:02.2]} 63... Rb3 {[%clk
0:01:26]} 64. Ra1 {[%clk 0:00:01.3]} 64... Kb4 {[%clk 0:01:25.8]} 65. Rd1 {[%clk
0:00:02.2]} 65... Kxc4 {[%clk 0:01:25.7]} 66. Rd6 {[%clk 0:00:03.1]} 66... a3
{[%clk 0:01:25.8]} 67. Rxe6 {[%clk 0:00:04]} 67... a2 {[%clk 0:01:25.6]} 68. Kd2
{[%clk 0:00:03]} 68... a1=Q {[%clk 0:01:25.3]} 69. Ke2 {[%clk 0:00:02.4]} 69...
Qc3 {[%clk 0:01:25.3]} 70. Rd6 {[%clk 0:00:02.1]} 70... Rb2+ {[%clk 0:01:25.2]}
71. Kf1 {[%clk 0:00:02]} 71... Qf3+ {[%clk 0:01:25.3]} 72. Ke1 {[%clk 0:00:01]}
72... Qe2# {[%clk 0:01:25.5]} 0-1